bitfinex/quotes_ETHUSD_20241212
["timestamp","ask_amount","ask_price","bid_price","bid_amount"]
[1733973551694,2.57773,3879.4,3878.1,0.02578011]
[1733973551842,2.57773,3879.4,3878.0,0.8497]
[1733973551843,1.80131498,3879.9,3878.0,0.8497]
[1733973552043,2.57793,3879.1,3878.1,0.213906]
[1733973552443,2.57812,3878.8,3878.1,0.213906]
[1733973552649,6.06551165,3879.8,3878.0,0.8497]
[1733973552650,2.57751,3879.7,3878.0,0.8497]
[1733973552891,2.57783,3879.3,3878.0,0.8497]
[1733973553148,2.57808,3878.9,3878.0,0.8497]
[1733973553366,3.48803165,3879.8,3878.1,0.02578391]
[1733973553577,2.57809,3878.9,3878.0,0.8497]
[1733973553911,2.57848,3878.3,3877.6,0.8497]
[1733973554261,2.57851,3878.2,3877.6,0.8497]
[1733973554476,2.57836,3878.5,3877.6,0.8497]
[1733973554664,2.5784,3878.4,3877.6,0.8497]
[1733973554896,1.0139,3878.9,3877.6,0.8497]
[1733973555213,2.57826,3878.6,3877.6,0.8497]
[1733973555567,2.57832,3878.5,3877.6,0.8497]
[1733973556012,2.57815,3878.8,3877.7,0.02578644]
[1733973556215,1.0139,3879.4,3877.7,0.025782]
[1733973556413,2.57798,3879.1,3877.8,2.13908]
[1733973556624,1.0139,3879.4,3877.9,0.2164862]
[1733973556625,2.57806,3878.9,3877.9,0.2164862]
[1733973556802,2.57806,3878.9,3877.8,0.8497]
[1733973557317,2.57842,3878.4,3877.8,0.8497]
[1733973557614,2.57833,3878.5,3877.8,0.8497]
[1733973557916,2.57853,3878.2,3877.8,0.8497]
[1733973558111,2.57837,3878.5,3877.8,0.8497]
[1733973558314,2.57839,3878.4,3877.8,0.8497]
[1733973558913,2.57859,3878.1,3876.9,0.8528]
[1733973559120,2.57859,3878.1,3877.1,0.52627646]
[1733973559276,2.57859,3878.1,3877.2,0.13790765]
[1733973560012,2.57853,3878.2,3877.2,0.13790765]
[1733973560604,1.0139,3878.5,3877.2,0.13790765]
[1733973560916,2.57858,3878.1,3877.2,0.13790765]
[1733973561127,1.0139,3878.5,3876.9,0.8528]
[1733973561435,2.57879,3877.8,3876.9,0.8528]
[1733973561638,1.0139,3878.5,3876.9,0.8528]
[1733973561776,2.57853,3878.2,3876.9,2.14248]
[1733973562123,2.57853,3878.2,3877.0,0.02578822]
[1733973562288,2.57853,3878.2,3877.2,0.8528]
[1733973562470,2.57853,3878.2,3877.3,0.02578762]
[1733973563280,2.57853,3878.2,3877.2,0.8528]
[1733973563473,2.57853,3878.2,3877.3,0.02578822]
[1733973563773,3.48803165,3878.8,3877.3,0.02578822]
[1733973563970,0.44787317,3878.7,3877.4,0.8484]
[1733973564211,0.9907,3878.9,3877.4,0.8484]
[1733973564212,0.9907,3878.9,3877.5,0.02578556]
[1733973564395,2.57819,3878.7,3877.5,0.02578556]
[1733973564600,2.57833,3878.5,3877.4,0.8484]
[1733973564821,2.57813,3878.8,3877.5,0.02578556]
[1733973564975,7.05653165,3879.3,3877.4,2.13791]
[1733973564976,2.57819,3878.7,3877.4,2.13791]
[1733973565175,2.57819,3878.7,3877.5,0.29457503]
[1733973565400,2.57819,3878.7,3877.5,1.58404503]
[1733973565609,2.57806,3878.9,3877.6,1.28944]
[1733973565917,4.47873165,3879.3,3877.7,0.87418404]
[1733973566129,4.47873165,3879.3,3877.7,0.8484]
[1733973566326,2.57803,3879.0,3877.8,0.2406671]
[1733973566832,0.70564317,3879.2,3877.8,0.2406671]
[1733973566976,3.48803165,3878.2,3877.0,0.8484]
[1733973567175,2.57905,3877.4,3877.0,0.8484]
[1733973570417,3.48803165,3878.2,3877.0,0.8484]
[1733973570418,2.57915,3877.3,3877.0,0.8484]
[1733973570630,4.47873165,3877.7,3876.2,0.8484]
[1733973570775,0.24045029,3877.6,3876.2,0.8484]
[1733973570975,4.47873165,3877.7,3876.2,0.8484]
[1733973570976,2.57952,3876.7,3876.2,0.8484]
[1733973571223,2.57914,3877.3,3876.2,0.8484]
[1733973571224,2.57958,3876.6,3876.2,0.8484]
[1733973571723,3.48803165,3877.3,3876.2,0.8484]
[1733973572048,2.57943,3876.9,3876.2,0.8484]
[1733973572227,2.57938,3876.9,3876.2,0.8484]
[1733973572521,2.5796,3876.6,3876.2,0.8484]
[1733973572819,3.48803165,3877.3,3876.2,0.8484]
[1733973573019,2.57965,3876.5,3876.2,0.8484]
[1733973573320,2.57891,3877.6,3876.2,0.8484]
[1733973573517,2.57904,3877.4,3876.2,0.8484]
[1733973573720,0.24033073,3877.3,3876.2,0.8484]
[1733973573876,2.81943073,3877.4,3876.3,0.02579586]
[1733973574076,2.81943073,3877.4,3876.2,0.8484]
[1733973574077,2.5791,3877.4,3876.2,0.8484]
[1733973574271,4.47873165,3878.1,3876.3,0.10498103]
[1733973574556,4.47873165,3878.1,3876.2,0.8484]
[1733973574557,2.5791,3877.4,3876.2,0.8484]
[1733973575125,0.44787317,3878.0,3876.3,0.130798]
[1733973575290,2.57891,3877.7,3876.5,0.8484]
[1733973575493,2.57891,3877.7,3876.6,0.02579241]
[1733973575813,0.44787317,3878.0,3876.7,0.21640324]
[1733973575977,0.44787317,3878.0,3876.5,0.8484]
[1733973575978,2.57925,3877.1,3876.5,0.8484]
[1733973576418,3.48803165,3877.6,3876.5,0.8484]
[1733973576601,2.57936,3877.0,3876.5,0.8484]
[1733973578953,2.57938,3876.9,3876.5,0.8484]
[1733973580358,0.257938,3876.9,3875.9,0.8484]
[1733973580556,2.57958,3876.6,3875.9,0.8484]
[1733973580916,0.9907,3877.5,3875.9,0.8484]
[1733973581115,0.24031592,3877.4,3875.9,0.8484]
[1733973581315,2.5795,3876.8,3875.9,0.8484]
[1733973581585,0.9907,3877.5,3875.9,0.8484]
[1733973581586,0.24031592,3876.7,3875.9,0.8484]
[1733973581874,2.5793,3877.1,3875.9,0.8484]
[1733973581875,0.24031151,3877.0,3876.0,0.2656222]
[1733973582066,2.5793,3877.1,3876.1,0.02579599]
[1733973582214,2.57907,3877.4,3876.2,0.8484]
[1733973582415,2.57887,3877.7,3876.4,0.8484]
[1733973582626,2.57887,3877.7,3876.5,0.02579279]
[1733973582960,2.579,3877.5,3876.4,0.8484]
[1733973583256,2.579,3877.5,3876.5,0.10498095]
[1733973583556,2.579,3877.5,3876.5,0.02579281]
[1733973583855,3.48803165,3878.1,3876.6,0.21640728]
[1733973583856,2.57887,3877.7,3876.6,0.21640728]
[1733973584354,3.56917,3878.3,3876.7,0.8484]
[1733973584569,3.56917,3878.3,3876.7,0.87419282]
[1733973584570,0.2403457,3878.2,3876.7,0.87419282]
[1733973584756,0.2403457,3878.1,3876.7,0.87419282]
[1733973584965,0.2403457,3878.0,3876.8,0.10496774]
[1733973585118,2.57892,3877.6,3876.7,0.8484]
[1733973585844,3.34997947,3878.2,3876.7,0.8484]
[1733973585845,0.77140947,3878.2,3876.7,0.8484]
[1733973586053,2.57905,3877.4,3876.7,0.8484]
[1733973586233,0.55,3877.9,3876.7,0.8484]
[1733973586434,2.57933,3877.0,3876.7,0.8484]
[1733973588089,2.57939,3876.9,3876.1,0.8484]
[1733973588376,0.24052329,3876.8,3876.1,0.8484]
[1733973588534,2.57965,3876.5,3875.9,0.51141283]
[1733973588735,2.57973,3876.4,3875.9,0.51141283]
[1733973589174,0.356982,3877.2,3875.9,0.53721269]
[1733973589331,2.57953,3876.7,3875.9,0.51141283]
[1733973589535,2.57966,3876.5,3875.9,0.51141283]
[1733973589793,2.5797,3876.5,3875.9,0.51141283]
[1733973592037,2.57949,3876.8,3875.9,0.64739411]
[1733973592237,0.24052098,3876.7,3875.9,0.64739411]
[1733973592439,2.57931,3877.1,3875.9,0.64739411]
[1733973592784,0.24051448,3877.0,3876.1,0.8484]
[1733973593084,0.24049127,3876.9,3876.1,0.8484]
[1733973593287,2.57932,3877.0,3876.1,0.99797941]
[1733973593288,0.24049127,3876.8,3876.1,0.99797941]
[1733973593435,0.240544,3876.7,3876.1,0.99797941]
[1733973593785,2.57938,3876.9,3876.1,0.99797941]
[1733973593986,0.24054464,3876.8,3876.1,0.99797941]
[1733973594149,0.24054464,3876.7,3876.1,0.99797941]
[1733973594355,2.57905,3877.4,3876.2,0.2818138]
[1733973594548,0.2405943,3877.3,3876.3,0.10507781]
[1733973594751,2.57905,3877.4,3876.2,0.15093922]
[1733973594956,0.24059207,3877.3,3876.3,0.10505964]
[1733973595295,0.24070983,3877.2,3876.4,0.10511257]
[1733973595453,0.24070983,3877.2,3876.2,0.15093922]
[1733973595454,2.57905,3877.4,3876.5,0.10511257]
[1733973595638,0.24070882,3877.3,3876.6,0.8513]
[1733973595845,3.57182,3877.9,3876.6,0.8513]
[1733973595846,2.57891,3877.7,3876.6,0.8513]
[1733973596033,0.9931,3877.9,3876.6,0.8513]
[1733973596034,2.81960833,3877.6,3876.6,0.8513]
[1733973596234,0.24069833,3877.5,3876.7,0.10520856]
[1733973596434,0.24069833,3877.4,3876.6,0.8513]
[1733973596635,0.24093033,3877.3,3876.7,0.10520057]
[1733973596861,2.57899,3877.5,3876.6,0.8513]
[1733973597144,0.2409396,3877.4,3876.7,0.10520198]
[1733973597278,0.2409396,3877.3,3876.6,0.8513]
[1733973597480,2.57899,3877.5,3876.7,0.10523189]
[1733973597665,0.2409935,3877.4,3876.6,0.8513]
[1733973597869,0.24099411,3877.3,3876.6,1.03962]
[1733973598195,2.57899,3877.5,3876.7,0.10673083]
[1733973598355,0.24099305,3877.4,3876.6,1.03962]
[1733973598554,2.57899,3877.5,3876.6,1.03962]
[1733973598555,0.24099305,3877.3,3876.7,0.10673297]
[1733973598907,2.57899,3877.5,3876.6,1.03962]
[1733973599053,0.24099595,3877.4,3876.6,1.03962]
[1733973599409,0.24099595,3877.3,3876.6,0.8513]
[1733973599584,0.24099595,3877.2,3876.6,0.8513]
[1733973599788,2.57899,3877.5,3876.7,0.10674626]
[1733973599959,0.9931,3877.9,3876.6,0.8513]
[1733973599960,0.24100601,3877.4,3876.6,0.8513]
[1733973600155,0.24100601,3877.3,3876.6,0.8513]
[1733973600360,0.24100601,3877.2,3876.6,0.8513]
[1733973600666,2.57905,3877.4,3876.6,0.8513]
[1733973600864,0.24100841,3877.3,3876.6,0.8513]
[1733973601065,0.24100841,3877.2,3876.6,0.8513]
[1733973601274,2.57905,3877.4,3876.6,0.8513]
[1733973601491,0.2410036,3877.3,3876.6,0.8513]
[1733973601696,0.2410036,3877.2,3876.6,0.8513]
[1733973601910,0.9931,3877.9,3876.6,1.04377013]
[1733973602151,0.24100012,3877.8,3876.7,2.35551753]
[1733973602414,0.24100012,3877.7,3876.8,2.32977467]
[1733973602560,0.24100012,3877.6,3876.9,0.65458941]
[1733973602761,2.57871,3877.9,3876.9,0.54787661]
[1733973603078,2.57885,3877.7,3876.9,0.54787661]
[1733973603426,2.57885,3877.7,3876.6,1.04377013]
[1733973603560,0.24097687,3877.6,3876.7,2.22334383]
[1733973603763,0.9931,3878.3,3877.4,0.8513]
[1733973603965,2.57825,3878.6,3877.4,0.8513]
[1733973603966,0.24094214,3878.2,3877.4,0.8513]
[1733973604218,5.09813363,3879.2,3878.0,1.03145]
[1733973604219,0.18900248,3878.1,3878.0,1.03145]
[1733973604375,1.61010198,3879.4,3878.0,1.03145]
[1733973604376,1.07340132,3880.0,3878.1,0.8513]
[1733973604587,0.26835033,3879.9,3878.9,1.03121]
[1733973604838,0.26835033,3879.9,3878.8,0.8513]
[1733973605078,0.26835033,3879.9,3878.9,0.8888793]
[1733973605224,0.9931,3880.2,3878.8,0.8513]
[1733973605575,2.57735,3880.0,3878.8,0.8513]
[1733973605918,2.57735,3880.0,3878.9,0.88734977]
[1733973606110,2.57735,3880.0,3878.8,0.8513]
[1733973606342,2.57693,3880.6,3879.0,0.8513]
[1733973606658,0.357003,3880.5,3879.2,1.03112]
[1733973607014,2.934003,3880.5,3879.3,0.8513]
[1733973608309,2.57713,3880.3,3879.3,0.8513]
[1733973608536,2.57713,3880.3,3879.3,1.37057834]
[1733973608990,2.57721,3880.2,3879.3,1.37057834]
[1733973609283,0.257721,3880.1,3879.3,1.37057834]
[1733973609876,1.0787,3881.7,3879.5,0.8513]
[1733973610045,2.57623,3881.7,3879.9,0.8513]
[1733973610254,1.0787,3882.1,3880.3,0.8513]
[1733973610464,2.57629,3881.6,3880.5,0.8513]
[1733973610895,2.57606,3881.9,3880.5,0.8513]
[1733973611044,0.365476,3881.8,3880.6,0.02576772]
[1733973611240,0.365476,3881.8,3880.7,0.8513]
[1733973612583,0.365476,3881.8,3880.8,0.0257644]
[1733973612767,0.12728068,3883.2,3880.8,0.0257644]
[1733973612768,2.57547,3882.8,3880.9,0.8513]
[1733973612966,2.57547,3882.8,3881.4,0.8513]
[1733973613148,2.57547,3882.8,3881.6,0.8513]
[1733973613478,9.22883,3883.3,3881.3,3.0]
[1733973613479,6.6537,3883.3,3881.7,0.87705867]
[1733973613685,0.66537,3883.2,3881.7,0.87705867]
[1733973613977,0.66537,3883.2,3881.7,0.8513]
[1733973614189,2.57528,3883.1,3881.5,1.03051]
[1733973614396,2.57528,3883.1,3881.8,0.8513]
[1733973614538,2.57528,3883.1,3882.0,0.8513]
[1733973614745,0.881565,3883.0,3882.0,0.8513]
[1733973614948,0.881565,3883.0,3882.0,0.723556]
[1733973615266,2.57543,3882.9,3882.0,0.723556]
[1733973615798,0.881565,3883.0,3882.0,0.723556]
[1733973616055,3.456925,3883.0,3882.0,0.723556]
[1733973616321,2.57555,3882.7,3882.0,0.723556]
[1733973616619,0.3456925,3882.9,3882.0,0.723556]
[1733973616920,0.881565,3883.0,3882.0,0.723556]
[1733973617121,2.57541,3882.9,3882.0,0.723556]
[1733973617273,2.57547,3882.8,3882.0,0.723556]
[1733973617869,2.57559,3882.7,3882.0,0.723556]
[1733973618068,0.881565,3883.0,3882.0,0.723556]
[1733973618310,0.3456805,3882.9,3882.0,0.723556]
[1733973618690,2.57575,3882.4,3882.0,0.723556]
[1733973619005,2.57556,3882.7,3882.0,0.723556]
[1733973619207,2.57556,3882.7,3882.6,0.02773297]
[1733973622574,2.9210805,3882.9,3882.6,0.02773297]
[1733973623118,0.38026455,3882.8,3882.6,0.02773297]
[1733973623323,2.5754,3882.9,3882.7,0.7244]
[1733973626189,2.57552,3882.7,3882.6,0.02773297]
[1733973626928,2.5754,3882.9,3882.6,0.02773297]
[1733973627261,2.57548,3882.8,3882.6,0.02773297]
[1733973627821,0.881565,3883.0,3882.6,0.02773297]
[1733973628119,3.456895,3883.0,3882.6,0.02773297]
[1733973628887,0.3456895,3882.9,3882.6,0.02773297]
[1733973629091,2.5755,3882.8,3882.6,0.02773297]
[1733973631327,2.57531,3883.1,3882.6,0.02773297]
[1733973631487,5.575,3883.3,3882.7,0.7244]
[1733973632095,0.05299177,3883.2,3882.8,0.02575316]
[1733973632288,0.05299177,3883.2,3882.9,0.7244]
[1733973632490,5.575,3883.3,3882.9,0.7244]
[1733973632709,5.575,3883.3,3882.9,1.50052688]
[1733973632915,5.575,3883.3,3883.0,0.7244]
[1733973633119,5.575,3883.3,3883.2,0.7244]
[1733973633394,4.35883612,3883.3,3883.2,9.75375614]
[1733973633592,0.59775432,3883.3,3883.2,9.75375614]
[1733973633837,0.00313918,3883.9,3883.3,1.03005]
[1733973634007,0.00313918,3883.9,3883.6,1.28743]
[1733973634205,0.00313918,3883.9,3883.7,0.55]
[1733973634645,0.00313918,3883.9,3883.3,3.0]
[1733973634844,0.00313918,3883.9,3883.4,0.1266]
[1733973634999,0.00313918,3883.9,3883.4,0.97170025]
[1733973635196,0.00313918,3883.9,3883.5,0.0257441]
[1733973635442,0.00313918,3883.9,3883.5,0.1269]
[1733973636698,0.05188311,3883.8,3883.5,0.1269]
[1733973636898,0.05188311,3883.8,3883.6,0.02574604]
[1733973637101,0.05188311,3883.8,3883.5,0.1269]
[1733973637899,0.05188311,3883.8,3883.5,0.0769]
[1733973638433,0.05188311,3883.8,3883.7,0.51511977]
[1733973638642,0.00313918,3883.9,3883.7,0.51511977]
[1733973638817,0.05176054,3883.8,3883.7,0.51511977]
[1733973639442,0.00313918,3883.9,3883.7,0.51511977]
[1733973640607,0.00313918,3883.9,3883.8,0.18026098]
[1733973640825,0.00313918,3883.9,3883.8,0.25716098]
[1733973643075,0.00313918,3883.9,3883.8,3.25716098]
[1733973644363,0.1655488,3884.3,3884.2,1.28726]
[1733973644693,0.03,3884.8,3884.7,6.47935614]
[1733973644977,8.01597986,3885.0,3884.9,0.55]
[1733973645181,6.98314986,3885.0,3884.9,4.58164161]
[1733973645410,3.47697486,3885.0,3884.9,1.10844161]
[1733973646032,3.47697486,3885.0,3884.9,0.0768]
[1733973646864,2.48004941,3885.0,3884.9,0.6268]
[1733973647631,1.19304941,3885.0,3884.9,5.6268]
[1733973647836,0.00314715,3886.6,3885.7,1.28674]
[1733973648036,2.57263,3887.1,3885.4,0.0768]
[1733973648037,0.99774715,3887.2,3885.5,1.28682]
[1733973648294,0.23884484,3886.5,3885.6,3.0]
[1733973648472,0.99774715,3887.2,3886.0,1.28666]
[1733973648796,5.625,3887.8,3886.5,0.55]
[1733973648965,8.19717,3887.8,3886.4,4.41023]
[1733973649169,5.625,3887.8,3886.4,0.1237]
[1733973649333,5.62333085,3887.8,3886.7,0.1237]
[1733973649743,5.62333085,3887.8,3887.1,1.28629]
[1733973649961,5.62333085,3887.8,3887.2,0.1237]
[1733973650473,5.62333085,3887.8,3886.9,1.28634]
[1733973650777,5.62333085,3887.8,3887.0,0.55]
[1733973650942,5.62333085,3887.8,3887.3,0.1237]
[1733973651156,5.62333085,3887.8,3887.4,0.55]
[1733973651336,1.0446,3887.7,3887.1,3.0]
[1733973651585,1.0446,3887.7,3886.3,0.25293694]
[1733973651781,2.57253,3887.3,3886.3,0.25293694]
[1733973651990,0.257253,3887.3,3886.5,0.50476591]
[1733973652304,0.257253,3887.3,3886.3,0.1237]
[1733973652305,2.5727,3887.0,3886.3,0.1237]
[1733973652590,2.5725,3887.3,3886.3,0.1237]
[1733973653051,3.61684,3887.7,3886.3,0.1237]
[1733973653389,2.57228,3887.6,3886.3,0.1237]
[1733973653572,2.57265,3887.1,3886.3,0.1237]
[1733973653736,2.57241,3887.4,3886.3,0.1237]
[1733973653936,1.0578,3887.0,3885.9,0.1836]
[1733973654250,1.0578,3887.0,3885.3,0.1836]
[1733973654251,2.57357,3885.7,3885.3,0.1836]
[1733973654689,2.57281,3886.8,3885.3,0.1836]
[1733973654690,2.57367,3885.5,3885.3,0.1836]
[1733973654885,2.57367,3885.5,3885.1,0.51083256]
[1733973655189,0.04220187,3885.4,3885.1,0.51083256]
[1733973655667,2.57351,3885.8,3885.1,0.51083256]
[1733973655869,0.04218721,3885.3,3885.1,5.0197587]
[1733973656164,2.57272,3887.0,3885.2,3.71727772]
[1733973656367,2.57272,3887.0,3885.7,3.1836]
[1733973656694,2.57255,3887.2,3885.8,0.02572729]
[1733973656855,2.57255,3887.2,3885.9,0.1836]
[1733973657184,1.0578,3887.6,3885.9,0.1836]
[1733973657185,2.57301,3886.5,3885.9,0.1836]
[1733973657403,0.04191971,3886.4,3885.9,0.1836]
[1733973657605,2.57285,3886.8,3885.9,0.1836]
[1733973657911,1.0578,3887.6,3885.9,0.1836]
[1733973657912,0.04229773,3886.7,3885.9,0.1836]
[1733973658205,2.5725,3887.3,3886.0,0.621298]
[1733973658416,0.04237652,3887.2,3886.0,0.621298]
[1733973658564,0.04237652,3887.2,3887.1,0.19647]
[1733973658761,5.62333085,3887.8,3887.1,0.19647]
[1733973658962,0.04273919,3887.7,3887.1,0.19647]
[1733973659721,0.04273919,3887.7,3887.2,1.0547198]
[1733973660207,5.62333085,3887.8,3887.2,3.02901]
[1733973660511,5.62333085,3887.8,3887.3,0.322548]
[1733973660714,5.62333085,3887.8,3887.5,0.50429976]
[1733973661106,5.62333085,3887.8,3887.7,3.66295614]
[1733973661420,5.62333085,3887.8,3887.7,6.21295614]
[1733973661713,5.62333085,3887.8,3887.7,0.1836]
[1733973661866,6.18597854,3887.8,3887.1,0.01287]
[1733973662373,0.03958767,3887.7,3887.6,2.0]
[1733973662595,5.62333085,3887.8,3887.6,3.23822731]
[1733973662787,5.62333085,3887.8,3887.7,0.1836]
[1733973663114,2.33484239,3887.8,3887.7,0.1836]
[1733973663434,0.1655488,3888.2,3887.8,5.24180614]
[1733973663562,0.1655488,3888.2,3887.8,6.36887775]
[1733973664468,0.1655488,3888.2,3888.1,3.21238]
[1733973664793,0.1655488,3888.2,3888.1,3.76238]
[1733973665610,0.1655488,3888.2,3888.1,6.78809021]
[1733973665775,0.1655488,3888.2,3888.1,6.76238]
[1733973665975,0.1655488,3888.2,3888.1,8.05417997]
[1733973666226,0.0031455,3888.7,3888.1,8.05417997]
[1733973666227,0.0031455,3888.7,3888.6,6.76224]
[1733973666418,0.0031455,3888.7,3888.6,10.24159614]
[1733973667281,0.0031455,3888.7,3887.8,0.70394192]
[1733973667713,0.0031455,3888.7,3887.8,0.72965543]
[1733973668093,0.04081003,3888.6,3887.8,1.19266004]
[1733973668415,0.0031455,3888.7,3887.6,0.12862574]
[1733973668416,2.57158,3888.7,3887.6,0.12862574]
[1733973668728,0.0401732,3888.6,3887.4,2.02773297]
[1733973669022,1.34295204,3889.2,3887.5,0.02571512]
[1733973669240,2.57156,3888.7,3887.5,0.02571512]
[1733973669418,2.57156,3888.7,3887.4,2.02773297]
[1733973669617,2.61136704,3888.6,3887.5,0.30824283]
[1733973670120,0.03971704,3888.6,3887.5,0.30824283]
[1733973670278,0.03971704,3888.6,3887.7,0.1896]
[1733973670475,1.10515553,3889.2,3887.9,1.02882]
[1733973670718,0.03964676,3888.5,3888.0,0.02571213]
[1733973670918,0.03964676,3888.5,3887.9,1.02882]
[1733973670919,2.57136,3889.0,3888.1,0.16045321]
[1733973671128,2.57151,3888.8,3887.7,0.1896]
[1733973671281,2.57156,3888.7,3887.7,0.1896]
[1733973671624,2.61135843,3888.7,3887.7,0.1896]
[1733973671922,2.61135843,3888.7,3887.8,0.57571535]
[1733973671923,0.03979843,3888.7,3887.8,0.57571535]
[1733973672523,2.57111,3889.4,3888.1,0.55]
[1733973672819,1.1112,3889.6,3888.2,0.62864633]
[1733973673133,1.1112,3889.6,3888.3,0.1896]
[1733973673134,0.625,3888.4,3888.3,0.1896]
[1733973674524,0.625,3888.4,3888.3,2.7396]
[1733973674695,0.625,3888.4,3888.3,0.1896]
[1733973675082,0.625,3888.4,3888.3,0.76531327]
[1733973675290,0.625,3888.4,3888.3,4.5742667]
[1733973677623,0.625,3888.4,3888.3,1.0242667]
[1733973677798,0.625,3888.4,3888.3,0.1896]
[1733973678283,0.625,3888.4,3888.1,0.52384377]
[1733973678624,0.625,3888.4,3888.2,1.02874]
[1733973679039,0.625,3888.4,3888.3,0.55]
[1733973679335,0.625,3888.4,3888.3,1.15242975]
[1733973681447,0.62190321,3888.4,3888.3,1.15242975]
[1733973681933,0.62190321,3888.4,3888.3,1.17814118]
[1733973682143,0.02517597,3888.4,3888.3,1.15242975]
[1733973683762,0.00314459,3889.8,3889.0,2.0]
[1733973683952,0.00314459,3889.8,3889.1,0.36230595]
[1733973684177,0.03909307,3889.7,3889.1,0.36230595]
[1733973684475,0.00314459,3889.8,3889.1,0.36230595]
[1733973684476,0.00314459,3889.8,3889.3,1.02844]
[1733973684821,0.03772083,3889.7,3889.3,1.02844]
[1733973685016,0.03772083,3889.7,3889.5,6.50775614]
[1733973685312,0.00314459,3889.8,3889.6,2.56830605]
[1733973686819,0.00314459,3889.8,3889.6,0.52609139]
[1733973687329,0.00314459,3889.8,3889.1,0.3366]
[1733973687330,0.03597738,3889.7,3889.1,0.3366]
[1733973687549,0.00314459,3889.8,3889.1,0.3366]
[1733973688063,1.0181,3889.7,3888.7,2.3366]
[1733973688263,1.05172044,3889.7,3888.7,2.36230742]
[1733973688415,1.05172044,3889.7,3888.9,1.02856]
[1733973688621,0.03362044,3889.7,3888.8,3.23623074]
[1733973688961,0.00314459,3889.8,3889.2,0.52388264]
[1733973689379,0.03352034,3889.7,3889.2,0.52388264]
[1733973689719,0.00314459,3889.8,3889.2,0.52388264]
[1733973689955,0.03354465,3889.6,3889.2,0.52388264]
[1733973690265,0.03355927,3889.7,3889.2,0.52388264]
[1733973690556,1.05163002,3889.5,3889.2,0.52388264]
[1733973690765,1.0181,3889.5,3889.2,0.52388264]
[1733973690919,0.0335154,3889.4,3888.3,2.54125779]
[1733973691120,0.0335154,3889.4,3888.4,0.39066078]
[1733973691350,2.57111,3889.4,3888.6,0.52054385]
[1733973691558,0.27326989,3889.3,3888.6,0.52054385]
[1733973691876,2.8108736,3889.2,3888.6,0.52054385]
[1733973692092,1.0181,3888.9,3887.9,0.13043131]
[1733973692400,1.0181,3888.9,3887.5,1.02893]
[1733973692554,0.03314955,3888.8,3887.6,0.68726191]
[1733973692754,1.0181,3888.8,3888.3,0.51396659]
[1733973693001,2.57158,3888.7,3888.3,0.51396659]
[1733973693214,0.03292353,3888.7,3887.6,0.3366]
[1733973693518,2.57401459,3889.8,3888.5,0.3366]
[1733973693519,1.0181,3889.3,3888.5,0.3366]
[1733973693814,1.0181,3889.5,3889.1,0.02773297]
[1733973694105,1.0181,3889.2,3889.1,0.02773297]
[1733973694304,1.25786208,3889.2,3889.1,0.02773297]
[1733973694508,1.28928253,3889.2,3889.1,0.02773297]
[1733973694800,1.04952045,3889.2,3889.1,0.02773297]
[1733973695100,0.03142045,3889.2,3889.1,0.02773297]
[1733973695514,1.0181,3889.7,3889.1,0.02773297]
[1733973695657,0.03046499,3889.2,3889.1,0.02773297]
[1733973695860,1.0181,3889.7,3889.1,0.02773297]
[1733973696095,0.03046499,3889.2,3889.1,0.02773297]
[1733973696303,1.0181,3889.7,3889.1,0.02773297]
[1733973696813,0.0307906,3889.6,3889.1,0.02773297]
[1733973697484,3.67006,3889.5,3889.1,0.02773297]
[1733973697776,2.81086027,3889.4,3889.1,0.02773297]
[1733973697968,2.81093027,3889.3,3889.1,0.02773297]
[1733973698301,1.36939332,3889.2,3889.1,0.02773297]
[1733973698510,1.12964305,3889.2,3889.1,0.02773297]
[1733973699083,0.03064305,3889.2,3889.1,0.02773297]
[1733973699495,0.00314459,3889.8,3889.5,1.02839]
[1733973699864,0.02968193,3889.7,3889.5,1.02839]
[1733973700065,0.02968193,3889.7,3889.3,2.0]
[1733973700066,0.00314459,3889.8,3889.6,1.02837]
[1733973700364,0.00314459,3889.8,3889.6,1.39067514]
[1733973700579,0.00314459,3889.8,3889.7,2.0]
[1733973700795,0.00314459,3889.8,3889.7,5.6390674]
[1733973701199,0.00314459,3889.8,3889.7,7.75440053]
[1733973701402,0.00314459,3889.8,3889.7,6.48520065]
[1733973702300,0.00314459,3889.8,3889.7,8.30526373]
[1733973702810,0.00314459,3889.8,3889.7,11.60833002]
[1733973703311,0.00314459,3889.8,3889.7,7.44822804]
[1733973703465,0.00314459,3889.8,3889.7,9.05571946]
[1733973703826,0.00314459,3889.8,3889.7,9.56436844]
[1733973704211,0.00314459,3889.8,3889.7,10.6536829]
[1733973704409,0.00314459,3889.8,3889.7,10.65150878]
[1733973705218,0.00314459,3889.8,3889.7,8.50688025]
[1733973705432,0.00314459,3889.8,3889.7,10.6514553]
[1733973705737,0.00314394,3890.6,3889.9,2.0]
[1733973706027,0.00314394,3890.6,3889.9,13.48951806]
[1733973706224,0.00314394,3890.6,3889.9,13.45860978]
[1733973706404,1e-05,3890.0,3889.9,11.31412029]
[1733973706603,1e-05,3890.0,3889.9,14.33126378]
[1733973706779,1e-05,3890.0,3889.9,11.65072029]
[1733973706977,1e-05,3890.0,3889.9,13.76098788]
[1733973707176,0.00314394,3890.6,3890.5,3.02814]
[1733973707373,0.00314394,3890.6,3890.5,16.76833244]
[1733973707607,0.00314394,3890.6,3890.5,16.74263777]
[1733973707806,0.00314394,3890.6,3890.5,14.59892452]
[1733973708324,0.00314394,3890.6,3890.5,17.27856609]
[1733973708477,0.00314394,3890.6,3890.5,14.59892452]
[1733973708920,3.94e-06,3890.6,3890.5,14.59892452]
[1733973709122,3.94e-06,3890.6,3890.5,17.27856609]
[1733973709425,3.94e-06,3890.6,3890.5,17.27356144]
[1733973709575,0.00314328,3891.4,3891.2,6.91456]
[1733973709772,0.00314328,3891.4,3891.2,11.432656]
[1733973710381,0.00314328,3891.4,3891.2,13.65241092]
[1733973710605,0.00314328,3891.4,3891.2,11.42965624]
[1733973711124,0.00314328,3891.4,3891.3,3.55]
[1733973711418,0.00314328,3891.4,3891.3,9.16105095]
[1733973711608,0.00314328,3891.4,3891.3,10.78936917]
[1733973712482,0.00314328,3891.4,3891.3,11.85780853]
[1733973713119,1.76368005,3892.0,3891.9,1.02777]